fUSD/lending_fUSD_20240412
["ID","MTS","AMOUNT","RATE_DAILY","PERIOD"]
[322308554,1712944243854,-150.83,0.00035278,2]
[322308556,1712944243864,-227.76,0.00035288,15]
[322308558,1712944243874,-150.14229404,0.00035327,2]
[322308560,1712944243883,-600.0,0.000356,120]
[322308561,1712944243893,-627.88,0.00036427,2]
[322308564,1712944243906,-158.96500123,0.000369,2]
[322308565,1712944243915,-158.96500123,0.000369,2]
[322308567,1712944243926,-158.96500123,0.000369,2]
[322308570,1712944243937,-158.96500123,0.000369,2]
[322308571,1712944243947,-158.96500123,0.000369,2]
[322308574,1712944243957,-158.96500123,0.000369,2]
[322308576,1712944243967,-600.27120623,0.00037,3]
[322308578,1712944243980,-49.72879377,0.00037,3]
[322308580,1712944243989,-1886.08494918,0.00037253,10]
[322308582,1712944243998,-571.73381336,0.00037397,8]
[322308584,1712944244008,-152.65,0.000374,3]
[322308586,1712944244017,-152.65,0.000374,3]
[322308588,1712944244027,-152.65,0.000374,3]
[322308590,1712944244037,-617.43064129,0.00037434,2]
[322308593,1712944244053,-188.56935871,0.00037434,2]
[322308595,1712944244062,-1104.08064129,0.00037434,2]
[322308600,1712944244096,-839.91935871,0.00037434,2]
[322308602,1712944244105,-277.92591492,0.00037461,2]
[322308604,1712944244115,-1558.24127938,0.00037461,2]
[322308605,1712944244124,-421.17799635,0.00037461,2]
[322308607,1712944244134,-150.83,0.0003749,2]
[322308610,1712944244145,-150.83,0.0003749,2]
[322308612,1712944244155,-4106.17633221,0.000375,18]
[322308614,1712944244166,-295893.82366779,0.000375,18]
[322308616,1712944244176,-575.61464788,0.00037561,2]
[322308618,1712944244184,-158.96500123,0.00037927,2]
[322308620,1712944244193,-227.76,0.00038027,15]
[322308622,1712944244202,-627.88,0.00038691,2]
[322308624,1712944244211,-362.62,0.00038933,2]
[322308626,1712944244220,-700.0,0.00039,3]
[322308628,1712944244230,-344.72310915,0.00039978,31]
[322308630,1712944244239,-150.83,0.0003999,2]
[322308632,1712944244249,-150.83,0.0003999,2]
[322308634,1712944244258,-150.83,0.0003999,2]
[322308636,1712944244268,-150.83,0.0003999,2]
[322308638,1712944244277,-210.62723606,0.00039999,31]
[322308640,1712944244286,-544.05162533,0.0004,120]
[322308642,1712944244295,-959.05932493,0.0004,30]
[322308644,1712944244305,-2760.96804434,0.0004,4]
[322308646,1712944244314,-3355.53099439,0.0004,4]
[322308648,1712944244324,-34884.99493741,0.0004,30]
[322308667,1712944244506,-1679.69426778,0.00020878,2]
[322308668,1712944244515,-1126.62170468,0.00020878,2]
[322308669,1712944244528,-4935.21450001,0.00020878,2]
[322308670,1712944244540,-602.82841382,0.00020878,2]
[322308671,1712944244552,-5116.00205135,0.00020878,2]
[322308672,1712944244565,-1833.10335406,0.00020878,2]
[322308674,1712944244577,-9762.46967488,0.00020878,2]
[322308676,1712944244587,-465115.00506259,0.0004,30]
[322308678,1712944244598,-150.0,0.00040078,120]
[322308680,1712944244608,-421.17799634,0.0004019,2]
[322308682,1712944244618,-277.9259149,0.0004024,2]
[322308684,1712944244627,-1558.24127937,0.0004024,2]
[322308686,1712944244638,-210.19090275,0.00040345,30]
[322308687,1712944244651,-1886.08494918,0.00040528,14]
[322308690,1712944244662,-344.72310912,0.00040738,33]
[322308692,1712944244673,-227.76,0.00040767,15]
[322308693,1712944244684,-627.88,0.00040955,2]
[322308695,1712944244693,-750.0,0.00041,3]
[322308698,1712944244703,-2000.0,0.00041095,120]
[322308699,1712944244713,-2000.0,0.00041095,120]
[322308701,1712944244723,-2000.0,0.00041095,120]
[322308703,1712944244733,-2000.0,0.00041095,120]
[322308705,1712944244742,-2000.0,0.00041095,120]
[322308707,1712944244752,-2000.0,0.00041095,120]
[322308709,1712944244762,-768.89026999,0.00041095,120]
[322308711,1712944244772,-150.38,0.00041096,2]
[322308713,1712944244782,-157.0,0.00041096,2]
[322308715,1712944244791,-258.99001207,0.00041096,30]
[322308717,1712944244800,-152.65,0.000412,4]
[322308719,1712944244810,-152.65,0.000412,4]
[322308721,1712944244820,-152.65,0.000412,4]
[322308723,1712944244830,-344.72310912,0.00041499,34]
[322308725,1712944244840,-571.73381336,0.00041525,10]
[322308728,1712944244854,-1339.0,0.00041814,7]
[322308729,1712944244864,-13410.39801573,0.00042,2]
[322308732,1712944244874,-344.72310912,0.00042259,35]
[322308734,1712944244884,-150.83,0.0004249,2]
[322308735,1712944244898,-150.83,0.0004249,2]
[322308737,1712944244908,-300000.0,0.000425,40]
[322308740,1712944244920,-150.83,0.0004288,2]
[322308742,1712944244930,-13700.0,0.0004289,4]
[322308744,1712944244942,-421.17799634,0.00042919,2]
[322308746,1712944244951,-150.73908605,0.0004292,30]
[322308748,1712944244961,-150.83,0.0004299,2]
[322308750,1712944244972,-150.83,0.0004299,2]
[322308752,1712944244981,-150.83,0.0004299,2]
[322308754,1712944244992,-150.83,0.0004299,2]
[322308756,1712944245002,-150.83,0.0004299,2]
[322308758,1712944245011,-150.83,0.0004299,2]
[322308760,1712944245024,-150.83,0.0004299,2]
[322308762,1712944245034,-150.83,0.0004299,2]
[322308764,1712944245045,-150.83,0.0004299,2]
[322308766,1712944245055,-150.83,0.0004299,2]
[322308768,1712944245065,-150.83,0.0004299,2]
[322308770,1712944245075,-150.83,0.0004299,2]
[322308772,1712944245084,-150.83,0.0004299,2]
[322308774,1712944245094,-150.83,0.0004299,2]
[322308776,1712944245104,-150.83,0.0004299,2]
[322308778,1712944245114,-150.83,0.0004299,2]
[322308780,1712944245124,-150.83,0.0004299,2]
[322308782,1712944245133,-150.83,0.0004299,2]
[322308784,1712944245143,-150.83,0.0004299,2]
[322308786,1712944245155,-150.83,0.0004299,2]
[322308788,1712944245165,-150.83,0.0004299,2]
[322308790,1712944245174,-150.83,0.0004299,2]
[322308793,1712944245195,-150.83,0.0004299,2]
[322308796,1712944245207,-150.83,0.0004299,2]
[322308798,1712944245218,-150.83,0.0004299,2]
[322308800,1712944245228,-150.83,0.0004299,2]
[322308801,1712944245238,-150.83,0.0004299,2]
[322308804,1712944245251,-150.83,0.0004299,2]
[322308806,1712944245261,-150.83,0.0004299,2]
[322308808,1712944245272,-150.83,0.0004299,2]
[322308810,1712944245283,-150.83,0.0004299,2]
[322308812,1712944245294,-150.83,0.0004299,2]
[322308814,1712944245303,-150.83,0.0004299,2]
[322308816,1712944245315,-150.0,0.00042999,60]
[322308818,1712944245325,-3377.76195446,0.00043,3]
[322308820,1712944245336,-59266.99859425,0.00043,7]
[322308823,1712944245351,-59800.01871227,0.00043,7]
[322308825,1712944245364,-567.738,0.00043,7]
[322308827,1712944245377,-40788.30265141,0.00043,7]
[322308830,1712944245390,-1633.11771267,0.00043,7]
[322308832,1712944245405,-3616.17333699,0.00043,7]
[322308912,1712944246082,-460.4138208,0.00043,7]
[322308914,1712944246095,-6631.09358061,0.00043,7]
[322308916,1712944246107,-3853.44010238,0.00043,7]
[322308920,1712944246119,-13445.6542348,0.00043,7]
[322308926,1712944246131,-2347.42350707,0.00043,7]
[322308930,1712944246144,-1918.50665417,0.00043,7]
[322308933,1712944246156,-2673.45012483,0.00043,7]
[322308936,1712944246167,-5018.73345084,0.00043,7]
[322308940,1712944246179,-13972.36849593,0.00043,7]
[322308944,1712944246190,-3278.13856911,0.00043,7]
[322308947,1712944246204,-5322.58131422,0.00043,7]
[322308951,1712944246218,-2687.24499819,0.00043,7]
[322308952,1712944246230,-3336.65171192,0.00043,7]
[322308953,1712944246242,-10473.27672931,0.00043,7]
[322308956,1712944246255,-6391.82919159,0.00043,7]
[322308961,1712944246267,-17467.93623511,0.00043,7]
[322308967,1712944246283,-2558.52847608,0.00043,7]
[322309019,1712944246388,-537.16417105,0.00043,7]
[322309026,1712944246399,-33006.59700346,0.00043,7]
[322309031,1712944246411,-2481.65136317,0.00043,7]
[322309036,1712944246422,-5397.5700003,0.00043,7]
[322309043,1712944246434,-10069.94621338,0.00043,7]
[322309052,1712944246466,-1282.0,0.00043,7]
[322309056,1712944246477,-66517.66259707,0.00043,7]
[322309120,1712944246775,-328.46705249,0.00021999,2]
[322309123,1712944246784,-373.12,0.0003749,3]
[322309125,1712944246794,-114998.41294751,0.00043,7]
[322309166,1712944246993,-5683.04136714,0.00043,7]
[322309169,1712944247009,-604.00839797,0.00043,7]
[322309172,1712944247021,-445.44996521,0.00043,7]
[322309175,1712944247033,-6949.62912979,0.00043,7]
[322309178,1712944247045,-61360.55963033,0.00043,7]
[322309181,1712944247056,-102742.12799999,0.00043,7]
[322309184,1712944247069,-502.11,0.00043,7]
[322309187,1712944247080,-942.88780286,0.00043,7]
[322309190,1712944247092,-6184.52394382,0.00043,7]
[322309194,1712944247108,-1232.59825842,0.00043,7]
[322309638,1712944272951,1489.17806127,0.000154,2]
[322309639,1712944287813,509.28969222,0.00018,2]
[322309641,1712944352680,150.9336365,0.00015,2]
[322309642,1712944381759,154.75549269,0.00020411,2]
[322309643,1712944387385,114623.89899523,0.000189,2]
[322309644,1712944402446,4985.17047407,0.0001305,2]
[322309646,1712944417514,6477.62804663,0.00035367,30]
[322309647,1712944450479,250.0,0.00020436,2]
[322309649,1712944461883,286.46765171,0.000125,2]
[322309650,1712944463170,23900.0,0.00020436,2]
[322309651,1712944472474,1426.7046,0.00020411,2]
[322309652,1712944474066,203.27,0.00020482,2]
[322309653,1712944474753,80799.85347107,0.00015,2]
[322309657,1712944494714,1045.93755107,0.00020501,2]
[322309658,1712944514934,1781.24322271,0.00020501,2]
[322309659,1712944525403,215.66768048,0.00020501,2]
[322309660,1712944548114,1082.35,0.00020386,2]
[322309661,1712944549284,1000.0,0.00020386,2]
[322309662,1712944595980,167.07309663,0.00020501,2]
[322309663,1712944654922,200.0,0.00020342,2]
[322309665,1712944807093,313.84,0.00018324,2]
[322309676,1712944948964,23900.0,0.00020036,2]
[322309677,1712944957034,-1781.24322271,0.00020504,2]
[322309678,1712944957069,-154.75549264,0.00020509,2]
[322309679,1712944957094,-1453.00128465,0.00020511,2]
[322309680,1712945031008,200.0,0.0002023,2]
[322309681,1712945187832,164.55,0.00020104,2]
[322309682,1712945208090,2776.87759788,0.0002023,2]
[322309683,1712945214988,18763.7425748,0.0002023,2]
[322309684,1712945218558,951.45483861,0.00019219,2]
[322309685,1712945226227,1500.0,0.0002023,2]
[322309692,1712945236927,357.83040702,0.00019219,2]
[322309693,1712945236964,15069.08111176,0.0002023,2]
[322309694,1712945248190,2322.416118,0.0002023,2]
[322309695,1712945266690,600.0,0.0002023,2]
[322309696,1712945276792,309.06,0.00018387,2]
[322309698,1712945362004,154.75549264,0.00020447,2]
[322309733,1712945431918,-607.36870775,0.00020508,2]
[322309734,1712945431928,-1240.12890502,0.00020509,2]
[322309735,1712945431937,-4350.25529031,0.00020511,2]
[322309736,1712945431946,-150.0,0.00020547,2]
[322309737,1712945431955,-9320.19,0.00020548,2]
[322309738,1712945431965,-154.75549264,0.00020598,2]
[322309739,1712945431975,-164.55,0.00020628,2]
[322309740,1712945431984,-309.06,0.00020651,2]
[322309741,1712945431993,-174.14,0.00020743,2]
[322309742,1712945432002,-154.75549264,0.00020749,2]
[322309743,1712945432012,-5806.13527407,0.00020779,2]
[322309744,1712945432021,-221.81819831,0.00020788,2]
[322309745,1712945432031,-999.99,0.00020788,2]
[322309746,1712945432042,-2870.87566942,0.00020789,2]
[322309747,1712945432051,-853.47,0.00020802,2]
[322309748,1712945432061,-1790.47042188,0.00020878,2]
[322309749,1712945432070,-500.0,0.0002088,2]
[322309750,1712945432081,-11353.899,0.0002088,2]
[322309751,1712945432090,-355.47,0.0002088,2]
[322309752,1712945432100,-2162.2,0.0002088,2]
[322309753,1712945432109,-210798.76959146,0.00020888,2]
[322309754,1712945432119,-442.74060427,0.00020898,2]
[322309755,1712945432128,-198.02966088,0.000209,2]
[322309756,1712945432138,-1373.31949877,0.000209,2]
[322309757,1712945432147,-745.48930542,0.000209,2]
[322309758,1712945432159,-1946.13047981,0.000209,2]
[322309759,1712945432169,-152.89496079,0.000209,2]
[322309760,1712945432178,-316.26634765,0.000209,2]
[322309761,1712945432187,-172.23989272,0.000209,2]
[322309762,1712945432196,-154.75549264,0.000209,2]
[322309763,1712945432207,-481.50882804,0.000209,2]
[322309764,1712945432216,-1998.93134826,0.000209,2]
[322309765,1712945432226,-182.58498013,0.000209,2]
[322309766,1712945432235,-442.74060422,0.0002092,2]
[322309767,1712945432245,-442.74060422,0.00020942,2]
[322309768,1712945432256,-442.74060422,0.00020964,2]
[322309769,1712945432266,-5651.01090746,0.0002098,2]
[322309771,1712945432275,-442.74060422,0.00020986,2]
[322309773,1712945432284,-322.19591055,0.0002099,2]
[322309776,1712945432297,-322.19591055,0.0002099,2]
[322309777,1712945432307,-322.19591055,0.0002099,2]
[322309778,1712945432316,-21819.73437446,0.00020997,2]
[322309779,1712945432325,-201.57223821,0.00020998,2]
[322309780,1712945432335,-312.61768174,0.00020998,2]
[322309781,1712945432344,-1044.64931274,0.00020998,2]
[322309782,1712945432354,-213.92092017,0.00020998,2]
[322309783,1712945432363,-166.15705166,0.00020998,2]
[322309784,1712945432373,-46826.9927875,0.00020998,2]
[322309785,1712945432382,-167.52,0.00020999,2]
[322309786,1712945432392,-155.62920748,0.00020999,2]
[322309787,1712945432402,-500.0,0.00020999,2]
[322309788,1712945432411,-500.0,0.00020999,2]
[322309789,1712945432421,-227.73676501,0.00020999,2]
[322309790,1712945432431,-500.0,0.00020999,2]
[322309791,1712945432440,-500.0,0.00020999,2]
[322309792,1712945432450,-500.0,0.00020999,2]
[322309793,1712945432459,-530.25373232,0.00020999,2]
[322309794,1712945432469,-289944.15157824,0.00021,2]
[322309795,1712945432482,-210683.02412985,0.00021,2]
[322309796,1712945432498,-4299.08963738,0.00021,2]
[322309797,1712945432509,-342.46857,0.00021,2]
[322309798,1712945432526,-34527.41582172,0.00021,2]
[322309799,1712945432542,-1701.70000046,0.00021,2]
[322309800,1712945432554,-238180.15297022,0.00021,2]
[322309801,1712945432565,-264.25996,0.00021,2]
[322309802,1712945432581,-4323.23949527,0.00021,2]
[322309803,1712945432592,-1795.15488874,0.00021,2]
[322309804,1712945432604,-2275.21706025,0.00021,2]
[322309805,1712945432615,-5107.80679493,0.00021,2]
[322309821,1712945437399,-275.80934749,0.000209,2]
[322309822,1712945437409,-1220.47530525,0.00021,2]
[322309823,1712945437421,-10650.41748,0.00021,2]
[322309824,1712945437456,-2758.23379486,0.00021,2]
[322309825,1712945437468,-14247.858,0.00021,2]
[322309826,1712945437622,-1985.73692538,0.00021,2]
[322309827,1712945437681,-838.86498246,0.00021,2]
[322309893,1712945438621,-325.523986,0.00021,2]
[322309929,1712945439153,-874.8864466,0.00021,2]
[322309963,1712945439476,-460.63094984,0.00021,2]
[322309966,1712945439489,-1136.13272154,0.00021,2]
[322309969,1712945439501,-363.47902387,0.00021,2]
[322309973,1712945439515,-290.54002739,0.00021,2]
[322309982,1712945439595,-20450.99749865,0.00021,2]
[322309986,1712945439654,-458.68758806,0.00021,2]
[322309987,1712945439666,-6691.68098172,0.00021,2]
[322309988,1712945439677,-525.04087276,0.00021,2]
[322309989,1712945439713,-1147.94373023,0.00021,2]
[322309990,1712945439724,-3006.90133178,0.00021,2]
[322309991,1712945439736,-1499.97790222,0.00021,2]
[322309992,1712945439773,-958.74954749,0.00021,2]
[322309993,1712945439784,-2451.27271428,0.00021,2]
[322309994,1712945439830,-16768.98760738,0.00021,2]
[322309995,1712945439851,-136103.75327996,0.00021,2]
[322309996,1712945439862,-10931.55257449,0.00021,2]
[322309997,1712945439874,-666.0,0.00021,2]
[322309998,1712945439890,-324112.6825321,0.00021,2]
[322309999,1712945439902,-666.14594998,0.00021,2]
[322310013,1712945442687,-393.10151959,0.00020999,2]
[322310014,1712945442702,-1065.68154872,0.00021,2]
[322310015,1712945442721,-1425.95166666,0.00021,2]
[322310016,1712945442739,-3149.22220706,0.00021,2]
[322310017,1712945442751,-414.0877311,0.00021,2]
[322310018,1712945442801,-22507.724665,0.00021,2]
[322310019,1712945442842,-43.54370747,0.00021,2]
[322310020,1712945442853,-3748.2824647,0.00021,2]
[322310021,1712945442865,-2411.58679431,0.00021,2]
[322310022,1712945442877,-11195.57348101,0.00021,2]
[322310023,1712945442889,-10235.29888001,0.00021,2]
[322310024,1712945442988,-1718.2306774,0.00021,2]
[322310025,1712945442999,-870.49805174,0.00021,2]
[322310026,1712945443011,-2824.28405727,0.00021,2]
[322310027,1712945443023,-2166.16088305,0.00021,2]
[322310028,1712945443035,-20280.42321553,0.00021,2]
[322310030,1712945443047,-5969.29276966,0.00021,2]
[322310032,1712945443060,-4650.53476498,0.00021,2]
[322310034,1712945443073,-2415.13514694,0.00021,2]
[322310035,1712945443085,-3220.80182993,0.00021,2]
[322310036,1712945443096,-2979.57635631,0.00021,2]
[322310037,1712945443108,-1688.55097497,0.00021,2]
[322310038,1712945443119,-10619.94736275,0.00021,2]
[322310039,1712945443131,-5400.99124429,0.00021,2]
[322310040,1712945443143,-8355.82243937,0.00021,2]
[322310057,1712945445526,-574.57392846,0.00021,2]
[322310058,1712945445585,-2459.00596874,0.00021,2]
[322310059,1712945445597,-2066.06392,0.00021,2]
[322310060,1712945445701,-386.0978034,0.00021,2]
[322310061,1712945445822,-787.3056344,0.00021,2]
[322310062,1712945616410,-2104.37612516,0.00020787,2]
[322310063,1712945616431,-640.69289231,0.00020787,2]
[322310064,1712945616454,-254.93098253,0.00020788,2]
[322310065,1712945617177,-1537.63861747,0.00020788,2]
[322310066,1712945617199,-944.07324987,0.00020896,2]
[322310067,1712945617223,-150.0,0.00020899,2]
[322310068,1712945617246,-150.0,0.00020899,2]
[322310069,1712945617267,-218.28813266,0.000209,2]
[322310070,1712945618645,-3000.0,0.000209,2]
[322310071,1712945619441,-3000.0,0.000209,2]
[322310072,1712945619733,-3000.0,0.000209,2]
[322310073,1712945620364,-3000.0,0.000209,2]
[322310074,1712945620723,-3000.0,0.000209,2]
[322310075,1712945621018,-3000.0,0.000209,2]
[322310076,1712945621386,-3000.0,0.000209,2]
[322310077,1712945621731,-3000.0,0.000209,2]
[322310078,1712945622162,-3000.0,0.000209,2]
[322310079,1712945622769,-2039.48178609,0.000209,2]
[322310080,1712945622790,-960.51821391,0.000209,2]
[322310081,1712945623136,-224.27313838,0.000209,2]
[322310082,1712945623158,-1332.62089884,0.000209,2]
[322310083,1712945623181,-183.87289834,0.000209,2]
[322310084,1712945623206,-1259.23306444,0.000209,2]
[322310085,1712945623480,-1696.21944241,0.000209,2]
[322310086,1712945623502,-331.22001308,0.00020999,2]
[322310087,1712945623523,-606.99434972,0.00020999,2]
[322310088,1712945623547,-365.56619479,0.00020999,2]
[322310089,1712945623842,-3000.0,0.00020999,2]
[322310090,1712945624390,-3000.0,0.00020999,2]
[322310091,1712945625030,-3000.0,0.00020999,2]
[322310092,1712945625441,-3000.0,0.00020999,2]
[322310093,1712945626069,-3000.0,0.00020999,2]
[322310094,1712945626468,-3000.0,0.00020999,2]
[322310095,1712945626759,-3000.0,0.00020999,2]
[322310096,1712945627123,-3000.0,0.00020999,2]
[322310097,1712945627470,-3000.0,0.00020999,2]
[322310098,1712945627844,-3000.0,0.00020999,2]
[322310099,1712945628126,-3000.0,0.00020999,2]
[322310100,1712945628520,-3000.0,0.00020999,2]
[322310101,1712945629053,-3000.0,0.00020999,2]
[322310102,1712945629936,-49.63359653,0.00020999,2]
[322310103,1712945629958,-2950.36640347,0.00021,2]
[322310104,1712945630026,-2230.90232896,0.00020998,2]
[322310105,1712945630048,-769.09767104,0.00021,2]
[322310106,1712945630432,-3000.0,0.00021,2]
[322310107,1712945630766,-3000.0,0.00021,2]
[322310108,1712945631152,-639.85103606,0.00020998,2]
[322310109,1712945631176,-2360.14896394,0.00021,2]
[322310110,1712945632630,-3000.0,0.00021,2]
[322310111,1712945633351,-3000.0,0.00021,2]
[322310112,1712945633651,-3000.0,0.00021,2]
[322310113,1712945634323,-3000.0,0.00021,2]
[322310114,1712945634955,-3000.0,0.00021,2]
[322310115,1712945635434,-3000.0,0.00021,2]
[322310116,1712945635973,-3000.0,0.00021,2]
[322310117,1712945636448,-3000.0,0.00021,2]
[322310118,1712945637034,-3000.0,0.00021,2]
[322310119,1712945693619,-198.65723243,0.000209,2]
[322310120,1712945693640,-316.26634761,0.000209,2]
[322310121,1712945693661,-531.14133348,0.000209,2]
[322310122,1712945693682,-1953.93508648,0.000209,2]
[322310123,1712945694036,-3000.0,0.000209,2]
[322310124,1712945694470,-3000.0,0.000209,2]
[322310125,1712945695335,-721.52441352,0.000209,2]
[322310126,1712945695373,-2278.47558648,0.000209,2]
[322310127,1712945696281,-221.52441352,0.000209,2]
[322310128,1712945696304,-789.86090154,0.000209,2]
[322310129,1712945696325,-888.41393256,0.000209,2]
[322310130,1712945696348,-1100.20075238,0.00020999,2]
[322310131,1712945697765,-186.55532352,0.00020999,2]
[322310132,1712945697786,-2813.44467648,0.00021,2]
[322310133,1712945710019,-300.0,0.00020999,2]
[322310134,1712945710041,-2700.0,0.00021,2]
[322310135,1712945710639,-3000.0,0.00021,2]
[322310136,1712945711265,-3000.0,0.00021,2]
[322310137,1712945712163,-3000.0,0.00021,2]
[322310138,1712945721080,-2032.3604,0.00021,2]
[322310139,1712945749497,1000.0,0.00020998,5]
[322310140,1712945750095,808.32283159,0.00020999,5]
[322310141,1712945792304,364.79,0.0001944,2]
[322310149,1712946063085,2275.337149,0.00020474,2]
[322310156,1712946099262,250.0,0.00020476,2]
[322310157,1712946146742,200.0,0.00020437,2]
[322310158,1712946162751,1500.0,0.00020454,2]
[322310159,1712946172656,2480.88,0.00020354,2]
[322310160,1712946182602,160.0,0.0002025,2]
[322310161,1712946204778,3089.439527,0.00020328,2]
[322310162,1712946206769,500.0,0.00020251,2]
[322310163,1712946207154,870.5,0.00020251,2]
[322310164,1712946212746,177.39,0.00020114,2]
[322310165,1712946230340,1182.9,0.00020158,2]
[322310166,1712946238970,748.53241802,0.00018808,2]
[322310167,1712946254960,682.26636195,0.00018808,2]
[322310168,1712946279217,162.55,0.00020265,2]
[322310169,1712946286115,13140.52,0.00020093,2]
[322310170,1712946315440,901.63,0.00020093,2]
[322310171,1712946339229,3089.439527,0.00020485,2]
[322310172,1712946345342,2534.66758285,0.00015364,2]
[322310173,1712946362096,1371.45451449,0.00020485,2]
[322310174,1712946363331,2035.5961233,0.00015364,2]
[322310175,1712946366861,358.53,0.00018111,2]
[322310176,1712946367331,358.53,0.00020375,2]
[322310177,1712946403258,287.80437565,0.00020485,2]
[322310178,1712946406003,1371.88659941,0.00020485,2]
[322310179,1712946423197,286.76854359,0.00020375,2]
[322310180,1712946430021,370.77372043,0.00020375,2]
[322310181,1712946430181,500.0,0.00020017,2]
[322310197,1712946450242,477.66,0.00020308,2]
[322310198,1712946477269,152.72907075,0.00020417,2]
[322310199,1712946511344,23900.0,0.00020114,2]
[322310200,1712946513001,550.63,0.00019948,2]
[322310201,1712946552755,173.87,0.00020104,2]
[322310202,1712946559253,706.84,0.00020026,2]
[322310235,1712946571685,200.0,0.00020055,2]
[322310236,1712946601929,195.17016549,0.00020409,2]
[322310237,1712946628564,150.0,0.00020123,2]
[322310250,1712946633127,-809.73333754,0.00020507,2]
[322310251,1712946633140,-638.49582452,0.00020507,2]
[322310252,1712946633152,-527.18712473,0.00020507,2]
[322310253,1712946633167,-2340.21495544,0.00020507,2]
[322310254,1712946633177,-104.05213032,0.00020507,2]
[322310255,1712946633189,-419.05190532,0.00020507,2]
[322310256,1712946633199,-3061.38397972,0.00020508,2]
[322310257,1712946633209,-441.53358594,0.00020508,2]
[322310258,1712946633219,-150.0,0.00020509,2]
[322310259,1712946633229,-150.0,0.00020509,2]
[322310260,1712946633239,-687.86888352,0.00020509,2]
[322310261,1712946633252,-98.01285632,0.00020509,2]
[322310262,1712946633261,-152.72907073,0.00020538,2]
[322310263,1712946633272,-151.481135,0.00020548,2]
[322310264,1712946633281,-191.19199718,0.00020548,2]
[322310265,1712946633294,-302.69800282,0.00020548,2]
[322310266,1712946633304,-441.05698349,0.000206,2]
[322310267,1712946633313,-152.72907073,0.00020659,2]
[322310268,1712946633323,-499.99,0.00020662,2]
[322310269,1712946633333,-3089.4395271,0.00020673,2]
[322310270,1712946633344,-2914.93,0.00020721,2]
[322310271,1712946633354,-152.72907073,0.00020779,2]
[322310272,1712946633363,-178.32564,0.0002079,2]
[322310273,1712946633373,-519.32,0.0002089,3]
[322310274,1712946633383,-2120.78904237,0.00020898,2]
[322310275,1712946633393,-627.61236506,0.00020898,2]
[322310276,1712946633406,-173.02749074,0.00020898,2]
[322310277,1712946633417,-1763.79617269,0.00020898,2]
[322310278,1712946633427,-216.55804018,0.00020898,2]
[322310279,1712946633437,-2051.21535306,0.00020898,2]
[322310280,1712946633447,-1126.23059818,0.00020898,2]
[322310281,1712946633458,-261.7441955,0.00020898,2]
[322310282,1712946633468,-13966.26401398,0.00020898,2]
[322310284,1712946633478,-1559.63268057,0.00020899,2]
[322310286,1712946633488,-436.779,0.000209,2]
[322310287,1712946633497,-173203.10861595,0.000209,2]
[322310289,1712946633509,-1695.27448405,0.000209,2]
[322310290,1712946633522,-10106.7995,0.000209,2]
[322310291,1712946633532,-577.2709,0.000209,2]
[322310292,1712946633541,-1943.53308768,0.000209,2]
[322310293,1712946633550,-258.54926455,0.000209,2]
[322310295,1712946633560,-152.72907073,0.000209,2]
[322310297,1712946633570,-318.13533241,0.000209,2]
[322310300,1712946633579,-174.28819338,0.000209,2]
[322310304,1712946633595,-152.21773502,0.000209,2]
[322310308,1712946633605,-421.20239218,0.000209,2]
[322310316,1712946633628,-105.37154218,0.000209,2]
[322310319,1712946633638,-325.09234905,0.00020998,2]
[322310320,1712946633647,-3019.9933511,0.00020998,2]
[322310321,1712946633662,-402.0,0.00020998,2]
[322310322,1712946633674,-2789.97913587,0.00020998,2]
[322310323,1712946633684,-1370.25239297,0.00020999,2]
[322310324,1712946633696,-3029.32809476,0.00020999,2]